﻿Departmental Area,Entity,Payment Date,Expense type,Expense Area,Supplier Name,Payment Reference,Invoice Distribution Amount,Description,Supplier Type,Expenditure Type
UK Statistical Authority,Office for National Statistics,04-Nov-19,Exp - Permanent Uk Staff - PRP Voucher Payments,ONS Corporate Funds,Park Retail Ltd,160093,"9,630.30", Love2Shop Employee Performance Reward Payment ,Large,Programme Expenditure
UK Statistical Authority,Office for National Statistics,04-Nov-19,Exp - Purchase Of Goods/Services - Incentive Payments,Survey Management,Park Retail Ltd,160093,"3,338.88", Survey Response Incentive Vouchers,Large,Programme Expenditure
UK Statistical Authority,Office for National Statistics,04-Nov-19,Exp - Purchase Of Goods/Services - Incentive Payments,Survey Management,Park Retail Ltd,160093,"17,368.53", Survey Response Incentive Vouchers,Large,Programme Expenditure
UK Statistical Authority,Office for National Statistics,04-Nov-19,FM Contract Payments,Mitie Payments,Vinci Construction UK Limited,160095,"26,450.96", Facility Management Services,Large,Programme Expenditure
UK Statistical Authority,Office for National Statistics,04-Nov-19,Exp - Purchase Of Goods/Services - Contractors,GSS Strategy Delivery,Concept Information Technology Ltd T/A Concept Resourcing,160096,"5,647.90", Census Information Management Services,Large,Programme Expenditure
UK Statistical Authority,Office for National Statistics,04-Nov-19,Exp - Short-Term Contract & Agency Staff - Full Cost,Beyond 2021 Research And Design,Concept Information Technology Ltd T/A Concept Resourcing,160096,"3,638.00", Census Information Management Services,Large,Programme Expenditure
UK Statistical Authority,Office for National Statistics,04-Nov-19,Exp - Short-Term Contract & Agency Staff - Full Cost,Business Change Support,Concept Information Technology Ltd T/A Concept Resourcing,160096,"5,876.33", Census Information Management Services,Large,Programme Expenditure
UK Statistical Authority,Office for National Statistics,04-Nov-19,Exp - Short-Term Contract & Agency Staff - Full Cost,Business Change Support,Concept Information Technology Ltd T/A Concept Resourcing,160096,"3,846.90", Census Information Management Services,Large,Programme Expenditure
UK Statistical Authority,Office for National Statistics,04-Nov-19,Exp - Short-Term Contract & Agency Staff - Full Cost,Business Change Support,Concept Information Technology Ltd T/A Concept Resourcing,160096,"11,038.91", Census Information Management Services,Large,Programme Expenditure
UK Statistical Authority,Office for National Statistics,04-Nov-19,Exp - Short-Term Contract & Agency Staff - Full Cost,Business Change Support,Concept Information Technology Ltd T/A Concept Resourcing,160096,"3,591.18", Census Information Management Services,Large,Programme Expenditure
UK Statistical Authority,Office for National Statistics,04-Nov-19,Exp - Purchase Of Goods/Services - Contractors,Business Change Support,Concept Information Technology Ltd T/A Concept Resourcing,160096,"9,176.71", Census Information Management Services,Large,Programme Expenditure
UK Statistical Authority,Office for National Statistics,04-Nov-19,Exp - Purchase Of Goods/Services - Contractors,Business Change Support,Concept Information Technology Ltd T/A Concept Resourcing,160096,"8,505.87", Census Information Management Services,Large,Programme Expenditure
UK Statistical Authority,Office for National Statistics,04-Nov-19,Exp - Purchase Of Goods/Services - Contractors,Business Change Support,Concept Information Technology Ltd T/A Concept Resourcing,160096,"3,914.88", Census Information Management Services,Large,Programme Expenditure
UK Statistical Authority,Office for National Statistics,04-Nov-19,Exp - Purchase Of Goods/Services - Contractors,Business Change Support,Concept Information Technology Ltd T/A Concept Resourcing,160096,"9,433.49", Census Information Management Services,Large,Programme Expenditure
UK Statistical Authority,Office for National Statistics,04-Nov-19,Exp - Purchase Of Goods/Services - Contractors,Business Indicators And B O P,Concept Information Technology Ltd T/A Concept Resourcing,160096,"3,704.60", Census Information Management Services,Large,Programme Expenditure
UK Statistical Authority,Office for National Statistics,04-Nov-19,Exp - Purchase Of Goods/Services - Contractors,Business Indicators And B O P,Concept Information Technology Ltd T/A Concept Resourcing,160096,"3,457.20", Census Information Management Services,Large,Programme Expenditure
UK Statistical Authority,Office for National Statistics,04-Nov-19,Exp - Purchase Of Goods/Services - Contractors,Tech Delivery Data As A Platform,Concept Information Technology Ltd T/A Concept Resourcing,160096,"6,694.08", Census Information Management Services,Large,Programme Expenditure
UK Statistical Authority,Office for National Statistics,04-Nov-19,Exp - Purchase Of Goods/Services - Contractors,Business Statistics Transformation,Concept Information Technology Ltd T/A Concept Resourcing,160096,"2,768.42", Census Information Management Services,Large,Programme Expenditure
UK Statistical Authority,Office for National Statistics,04-Nov-19,Other Goods And Services,Interviewer Management TU,Concept Information Technology Ltd T/A Concept Resourcing,160096,685.13, Census Information Management Services,Large,Programme Expenditure
UK Statistical Authority,Office for National Statistics,04-Nov-19,Other Goods And Services,Interviewer Support,Concept Information Technology Ltd T/A Concept Resourcing,160096,"1,587.31", Census Information Management Services,Large,Programme Expenditure
UK Statistical Authority,Office for National Statistics,04-Nov-19,Other Professional Services,People Solutions,Government Legal Department,160099,"26,391.08", Professional Legal Advice,Large,Programme Expenditure
UK Statistical Authority,Office for National Statistics,04-Nov-19,Surveys,Labour Market,University Of Durham,160101,"329,499.60", Statstical Services,Large,Programme Expenditure
UK Statistical Authority,Office for National Statistics,04-Nov-19,Travel And Subsistence,CWT Trainline,Corporate Travel Management ,160104,"63,271.01", Corporate Travel Management ,SME,Programme Expenditure
UK Statistical Authority,Office for National Statistics,04-Nov-19,Exp - Purchase Of Goods/Services - It Contractual Services,DST Reapportioning,QA Ltd,160113,"267,894.00", Information Management Services,Large,Programme Expenditure
UK Statistical Authority,Office for National Statistics,04-Nov-19,Surveys,Crime Statistics,Kantar UK Ltd,160132,"891,482.40", Statistical Services,Large,Programme Expenditure
UK Statistical Authority,Office for National Statistics,05-Nov-19,FM Contract Payments,Mitie Payments,Vinci Construction UK Limited,160364,"173,344.67", Facility Management Services,Large,Programme Expenditure
UK Statistical Authority,Office for National Statistics,05-Nov-19,Telecoms,IT Operations,BT Global Services,160370,"49,780.39", BT Cloud Services,Large,Programme Expenditure
UK Statistical Authority,Office for National Statistics,05-Nov-19,Postage,Survey Processing Centre,DHL Parcel Ltd,160372,"25,380.23", Outgoing Postage,Large,Programme Expenditure
UK Statistical Authority,Office for National Statistics,05-Nov-19,Exp - Purchase Of Goods/Services - Contractors,Business Architecture,Certes Computing Ltd,160373,"15,372.00", Information Management Services,SME,Programme Expenditure
UK Statistical Authority,Office for National Statistics,05-Nov-19,Exp - Purchase Of Goods/Services - Contractors,Programme Delivery,Certes Computing Ltd,160373,"12,649.40", Information Management Services,SME,Programme Expenditure
UK Statistical Authority,Office for National Statistics,05-Nov-19,Exp - Purchase Of Goods/Services - Contractors,Data Architecture,Certes Computing Ltd,160373,"7,199.28", Information Management Services,SME,Programme Expenditure
UK Statistical Authority,Office for National Statistics,05-Nov-19,Exp - Purchase Of Goods/Services - Contractors,Data Architecture,Certes Computing Ltd,160373,"15,404.14", Information Management Services,SME,Programme Expenditure
UK Statistical Authority,Office for National Statistics,05-Nov-19,Exp - Purchase Of Goods/Services - Contractors,Strategy And Architecture,Certes Computing Ltd,160373,"14,987.16", Information Management Services,SME,Programme Expenditure
UK Statistical Authority,Office for National Statistics,05-Nov-19,Exp - Purchase Of Goods/Services - Contractors,Tech Delivery Legacy SP,Certes Computing Ltd,160373,"6,405.00", Information Management Services,SME,Programme Expenditure
UK Statistical Authority,Office for National Statistics,05-Nov-19,Exp - Purchase Of Goods/Services - Contractors,Tech Delivery Data As A Platform,Certes Computing Ltd,160373,"15,372.00", Information Management Services,SME,Programme Expenditure
UK Statistical Authority,Office for National Statistics,05-Nov-19,Exp - Purchase Of Goods/Services - Contractors,IT Applications,Certes Computing Ltd,160373,"14,091.12", Information Management Services,SME,Programme Expenditure
UK Statistical Authority,Office for National Statistics,05-Nov-19,Exp - Purchase Of Goods/Services - Contractors,Office Of Chief Data And Information,Certes Computing Ltd,160373,"3,522.66", Information Management Services,SME,Programme Expenditure
UK Statistical Authority,Office for National Statistics,05-Nov-19,Exp - Purchase Of Goods/Services - Contractors,Digital Delivery,Certes Computing Ltd,160373,832.62, Information Management Services,SME,Programme Expenditure
UK Statistical Authority,Office for National Statistics,05-Nov-19,Exp - Purchase Of Goods/Services - Contractors,Digital Delivery,Certes Computing Ltd,160373,"7,045.56", Information Management Services,SME,Programme Expenditure
UK Statistical Authority,Office for National Statistics,05-Nov-19,Exp - Purchase Of Goods/Services - Contractors,Digital Delivery,Certes Computing Ltd,160373,"14,398.56", Information Management Services,SME,Programme Expenditure
UK Statistical Authority,Office for National Statistics,05-Nov-19,Exp - Purchase Of Goods/Services - Contractors,Testing,LA International,160374,"1,537.85", Information Management Services ,SME,Programme Expenditure
UK Statistical Authority,Office for National Statistics,05-Nov-19,Exp - Purchase Of Goods/Services - Contractors,Security Advisory,LA International,160374,"10,764.94", Information Management Services ,SME,Programme Expenditure
UK Statistical Authority,Office for National Statistics,05-Nov-19,Exp - Purchase Of Goods/Services - Contractors,Data Architecture,LA International,160374,"3,588.30", Information Management Services ,SME,Programme Expenditure
UK Statistical Authority,Office for National Statistics,05-Nov-19,Exp - Purchase Of Goods/Services - Contractors,Data Architecture,LA International,160374,"3,844.62", Information Management Services ,SME,Programme Expenditure
UK Statistical Authority,Office for National Statistics,05-Nov-19,Exp - Purchase Of Goods/Services - Contractors,Tech Delivery SRS,LA International,160374,"14,353.20", Information Management Services ,SME,Programme Expenditure
UK Statistical Authority,Office for National Statistics,05-Nov-19,Exp - Purchase Of Goods/Services - Contractors,Tech Delivery Data As A Platform,LA International,160374,"7,642.33", Information Management Services ,SME,Programme Expenditure
UK Statistical Authority,Office for National Statistics,05-Nov-19,Exp - Purchase Of Goods/Services - Contractors,IT Applications,LA International,160374,"15,071.12", Information Management Services ,SME,Programme Expenditure
UK Statistical Authority,Office for National Statistics,05-Nov-19,Exp - Purchase Of Goods/Services - Contractors,Digital Delivery,LA International,160374,"8,970.84", Information Management Services ,SME,Programme Expenditure
UK Statistical Authority,Office for National Statistics,05-Nov-19,Training & Development,Office Of Chief Data And Information,Armakuni Ltd,160377,"25,020.00", Training ,SME,Programme Expenditure
UK Statistical Authority,Office for National Statistics,05-Nov-19,Hosting,IT Operations,Amazon Web Services Inc,160378,"82,873.06", Web Hosting Services,Large,Programme Expenditure
UK Statistical Authority,Office for National Statistics,05-Nov-19,Hosting,Data Science Campus,Amazon Web Services Inc,160378,246.22, Web Hosting Services,Large,Programme Expenditure
UK Statistical Authority,Office for National Statistics,05-Nov-19,Exp - Purchase Of Goods/Services - IT Contractual Services,Tech Delivery Next Gen It And Infrastructure,Cysure Limited,160384,"22,971.00", Software Support,SME,Programme Expenditure
UK Statistical Authority,Office for National Statistics,05-Nov-19,Exp - Purchase Of Goods/Services - Contractor Travel,Tech Delivery Next Gen It And Infrastructure,Cysure Limited,160384,"2,631.23", Software Support,SME,Programme Expenditure
UK Statistical Authority,Office for National Statistics,06-Nov-19,Travel And Subsistence,CWT Trainline,Corporate Travel Management ,160409,"64,177.85", Corporate Travel Management ,SME,Programme Expenditure
UK Statistical Authority,Office for National Statistics,06-Nov-19,IT Management And Change,Finance,Phoenix Software Ltd,160412,"5,686.85", Software Licenses,SME,Programme Expenditure
UK Statistical Authority,Office for National Statistics,06-Nov-19,End User Software And Hardware,Finance,Phoenix Software Ltd,160412,"157,740.00", Software Licenses,SME,Programme Expenditure
UK Statistical Authority,Office for National Statistics,06-Nov-19,Travel And Subsistence,CWT Trainline,Calder World Of Travel,160416,"110,062.00", Corporate Travel Management ,SME,Programme Expenditure
UK Statistical Authority,Office for National Statistics,06-Nov-19,"ICT Outsourcing, Maintenance And Support",It Operations,CTS (Cloud Technology Solutions Ltd),160423,"48,514.31", Google Cloud Services,Large,Programme Expenditure
UK Statistical Authority,Office for National Statistics,06-Nov-19,Capital Major Works >25K,Property Christchurch,Bruynzeel Storage Systems Ltd,160426,"69,877.20", Major Works Christchurch,Large,Programme Expenditure
UK Statistical Authority,Office for National Statistics,07-Nov-19,IT Management And Change,IT Operations,Crown Hosting Data Centres Limited,160729,"87,527.15", Crown Hosted Data,SME,Programme Expenditure
UK Statistical Authority,Office for National Statistics,07-Nov-19,Exp - Purchase Of Goods/Services - Contractors,TESTING,Certes Computing Ltd,160735,"16,448.04", Information Management Services,SME,Programme Expenditure
UK Statistical Authority,Office for National Statistics,07-Nov-19,Exp - Purchase Of Goods/Services - Contractors,Tech Delivery Legacy SP,Certes Computing Ltd,160735,"27,847.92", Information Management Services,SME,Programme Expenditure
UK Statistical Authority,Office for National Statistics,07-Nov-19,Exp - Purchase Of Goods/Services - Contractors,Tech Delivery Data As A Platform,Certes Computing Ltd,160735,187.56, Information Management Services,SME,Programme Expenditure
UK Statistical Authority,Office for National Statistics,07-Nov-19,Exp - Purchase Of Goods/Services - Contractors,Digital Delivery,Certes Computing Ltd,160735,"12,810.00", Information Management Services,SME,Programme Expenditure
UK Statistical Authority,Office for National Statistics,07-Nov-19,Exp - Purchase Of Goods And Services Consultants,OPERATIONS,Concentra,160744,"6,848.88", Information Management Services,Large,Programme Expenditure
UK Statistical Authority,Office for National Statistics,07-Nov-19,Other Goods And Services,OPERATIONS,Concentra,160744,"29,707.68", Information Management Services,Large,Programme Expenditure
UK Statistical Authority,Office for National Statistics,07-Nov-19,Telecoms,Tech Delivery Next Gen It And Infrastructure,Freedom Communications (UK) Ltd,160745,"47,252.71", Skype Services,Large,Programme Expenditure
UK Statistical Authority,Office for National Statistics,08-Nov-19,Exp - Purchase Of Goods/Services - IT Contractual Services,Tech Delivery SRS,Equiniti-Toplevel,160755,"80,559.58", Information Management Services,SME,Programme Expenditure
UK Statistical Authority,Office for National Statistics,08-Nov-19,Exp - Short-Term Contract & Agency Staff - Full Cost,BUSINESS CHANGE SUPPORT,Concept Information Technology Ltd T/A Concept Resourcing,160758,"8,708.89", Information Management Services,Large,Programme Expenditure
UK Statistical Authority,Office for National Statistics,08-Nov-19,Exp - Short-Term Contract & Agency Staff - Full Cost,BUSINESS CHANGE SUPPORT,Concept Information Technology Ltd T/A Concept Resourcing,160758,"9,586.76", Information Management Services,Large,Programme Expenditure
UK Statistical Authority,Office for National Statistics,08-Nov-19,Exp - Short-Term Contract & Agency Staff - Full Cost,BUSINESS CHANGE SUPPORT,Concept Information Technology Ltd T/A Concept Resourcing,160758,"5,393.73", Information Management Services,Large,Programme Expenditure
UK Statistical Authority,Office for National Statistics,08-Nov-19,Exp - Short-Term Contract & Agency Staff - Full Cost,BUSINESS CHANGE SUPPORT,Concept Information Technology Ltd T/A Concept Resourcing,160758,"11,575.63", Information Management Services,Large,Programme Expenditure
UK Statistical Authority,Office for National Statistics,08-Nov-19,Exp - Purchase Of Goods/Services - Contractors,BUSINESS CHANGE SUPPORT,Concept Information Technology Ltd T/A Concept Resourcing,160758,"2,775.12", Information Management Services,Large,Programme Expenditure
UK Statistical Authority,Office for National Statistics,08-Nov-19,Training & Development,BUSINESS CHANGE SUPPORT,Concept Information Technology Ltd T/A Concept Resourcing,160758,791.47, Information Management Services,Large,Programme Expenditure
UK Statistical Authority,Office for National Statistics,08-Nov-19,Exp - Short-Term Contract & Agency Staff - Full Cost,BUSINESS CHANGE SUPPORT,Concept Information Technology Ltd T/A Concept Resourcing,160758,"4,749.91", Information Management Services,Large,Programme Expenditure
UK Statistical Authority,Office for National Statistics,08-Nov-19,Exp - Short-Term Contract & Agency Staff - Full Cost,BUSINESS CHANGE SUPPORT,Concept Information Technology Ltd T/A Concept Resourcing,160758,"4,734.40", Information Management Services,Large,Programme Expenditure
UK Statistical Authority,Office for National Statistics,08-Nov-19,Exp - Short-Term Contract & Agency Staff - Full Cost,BUSINESS CHANGE SUPPORT,Concept Information Technology Ltd T/A Concept Resourcing,160758,"8,510.41", Information Management Services,Large,Programme Expenditure
UK Statistical Authority,Office for National Statistics,08-Nov-19,Exp - Purchase Of Goods And Services Consultants,Digital Delivery,XMA Limited,160760,"15,386.40", Census Management Information Services,Large,Programme Expenditure
UK Statistical Authority,Office for National Statistics,08-Nov-19,Exp - Purchase Of Goods And Services Consultants,Digital Delivery,XMA Limited,160760,"11,480.40", Census Management Information Services,Large,Programme Expenditure
UK Statistical Authority,Office for National Statistics,08-Nov-19,Exp - Purchase Of Goods/Services - Contractors,TESTING,Certes Computing Ltd,160763,"9,735.60", Information Management Services,SME,Programme Expenditure
UK Statistical Authority,Office for National Statistics,08-Nov-19,Exp - Purchase Of Goods/Services - Contractors,TESTING,Certes Computing Ltd,160763,"13,450.56", Information Management Services,SME,Programme Expenditure
UK Statistical Authority,Office for National Statistics,08-Nov-19,Exp - Purchase Of Goods/Services - Contractors,Digital Delivery,Certes Computing Ltd,160763,956.03, Information Management Services,SME,Programme Expenditure
UK Statistical Authority,Office for National Statistics,08-Nov-19,Exp - Purchase Of Goods/Services - Contractors,Digital Delivery,Certes Computing Ltd,160763,"13,386.11", Information Management Services,SME,Programme Expenditure
UK Statistical Authority,Office for National Statistics,08-Nov-19,Surveys,Prices Division,Mintel Group Ltd,160777,"49,200.00", Statistical Services,Large,Programme Expenditure
UK Statistical Authority,Office for National Statistics,08-Nov-19,Exp - Purchase Of Goods And Services Consultants,CONSULTANCY MANAGEMENT,Deloitte,160781,"52,200.00", Information Management Services ,Large,Programme Expenditure
UK Statistical Authority,Office for National Statistics,11-Nov-19,"ICT Outsourcing, Maintenance And Support",IT Operations,SCC,161044,"191,808.00", Software Lincence and Support,Large,Programme Expenditure
UK Statistical Authority,Office for National Statistics,12-Nov-19,Exp - Purchase Of Goods/Services - IT Contractual Services,DIGITAL PUBLISHING,Swirrl IT Ltd,161412,"72,063.37", Information Management Services,SME,Programme Expenditure
UK Statistical Authority,Office for National Statistics,12-Nov-19,Other Goods And Services,BEYOND 2021 RESEARCH AND DESIGN,The Sensible Code Company,161415,"71,578.48", Information Management Services,SME,Programme Expenditure
UK Statistical Authority,Office for National Statistics,12-Nov-19,Exp - Purchase Of Goods/Services - Contractors,TESTING,LA International,161416,"6,913.54", Information Management Services ,SME,Programme Expenditure
UK Statistical Authority,Office for National Statistics,12-Nov-19,Exp - Purchase Of Goods/Services - Contractors,Tech Delivery SRS,LA International,161416,"1,435.32", Information Management Services ,SME,Programme Expenditure
UK Statistical Authority,Office for National Statistics,12-Nov-19,Exp - Purchase Of Goods/Services - Contractors,Tech Delivery Data As A Platform,LA International,161416,"17,941.50", Information Management Services ,SME,Programme Expenditure
UK Statistical Authority,Office for National Statistics,12-Nov-19,Exp - Purchase Of Goods/Services - Contractors,Tech Delivery Data As A Platform,LA International,161416,"3,156.90", Information Management Services ,SME,Programme Expenditure
UK Statistical Authority,Office for National Statistics,12-Nov-19,Exp - Purchase Of Goods/Services - Contractors,IT Applications,LA International,161416,"5,779.98", Information Management Services ,SME,Programme Expenditure
UK Statistical Authority,Office for National Statistics,12-Nov-19,Exp - Purchase Of Goods/Services - Contractors,Digital Delivery,LA International,161416,"4,485.42", Census Information Management Services ,SME,Programme Expenditure
UK Statistical Authority,Office for National Statistics,12-Nov-19,Exp - Purchase Of Goods/Services - Contractors,Digital Delivery,LA International,161416,"7,176.60", Census Information Management Services ,SME,Programme Expenditure
UK Statistical Authority,Office for National Statistics,12-Nov-19,Exp - Purchase Of Goods/Services - Contractors,Digital Delivery,LA International,161416,63.29, Census Information Management Services ,SME,Programme Expenditure
UK Statistical Authority,Office for National Statistics,12-Nov-19,Exp - Purchase Of Goods/Services - Contractors,Digital Delivery,LA International,161416,"7,176.60", Census Information Management Services ,SME,Programme Expenditure
UK Statistical Authority,Office for National Statistics,12-Nov-19,"ICT Outsourcing, Maintenance And Support",SENIOR MANAGEMENT TEAM DESIGN,Totalmobile Ltd,161419,"199,081.20", Field Management License and Hosting Charges,SME,Programme Expenditure
UK Statistical Authority,Office for National Statistics,13-Nov-19,Telecoms,IT Operations,BT Global Services,161426,"27,081.10", BT Cloud Services,Large,Programme Expenditure
UK Statistical Authority,Office for National Statistics,13-Nov-19,Travel And Subsistence,CWT Trainline,Corporate Travel Management ,161429,"74,408.75", Corporate Travel Management ,SME,Programme Expenditure
UK Statistical Authority,Office for National Statistics,14-Nov-19,Exp - Purchase Of Goods/Services - It Contractual Services,Dst Reapportioning,Empiric Solutions Limited,161851,"98,865.00", Information Management Services,Large,Programme Expenditure
UK Statistical Authority,Office for National Statistics,14-Nov-19,Exp - Purchase Of Goods/Services - Contractors,Digital Delivery,Empiric Solutions Limited,161851,"1,365.00", Information Management Services,Large,Programme Expenditure
UK Statistical Authority,Office for National Statistics,14-Nov-19,Surveys,Business Outputs And Developments,IFF Research,161857,"181,374.00", Statistical Services,Large,Programme Expenditure
UK Statistical Authority,Office for National Statistics,14-Nov-19,Accommodation & Building Management,Interview Management IPS,Heathrow Airport,161861,"444,984.84", Accomodation cost ,Large,Programme Expenditure
UK Statistical Authority,Office for National Statistics,14-Nov-19,Marketing & Media,NONE,Manning Gottlieb,161877,"121,526.50", Census Information Management Services,Large,Programme Expenditure
UK Statistical Authority,Office for National Statistics,18-Nov-19,"ICT Outsourcing, Maintenance And Support",IT Applications,Cysure Limited,162176,"127,791.30", Software Support,SME,Programme Expenditure
UK Statistical Authority,Office for National Statistics,18-Nov-19,Exp - Purchase Of Goods/Services - Contractor Travel,IT Applications,Cysure Limited,162176,"7,298.99", Software Support,SME,Programme Expenditure
UK Statistical Authority,Office for National Statistics,18-Nov-19,Exp - Purchase Of Goods/Services - Incentive Payments,Survey Management,Park Retail Ltd,162178,"57,822.87", Survey Response Incentive Vouchers,Large,Programme Expenditure
UK Statistical Authority,Office for National Statistics,18-Nov-19,Exp - Purchase Of Goods/Services - Incentive Payments,Survey Management,Park Retail Ltd,162178,"16,458.61", Survey Response Incentive Vouchers,Large,Programme Expenditure
UK Statistical Authority,Office for National Statistics,18-Nov-19,Exp - Purchase Of Goods/Services - Incentive Payments,Survey Management,Park Retail Ltd,162178,"9,046.68", Survey Response Incentive Vouchers,Large,Programme Expenditure
UK Statistical Authority,Office for National Statistics,18-Nov-19,Exp - Purchase Of Goods/Services - Incentive Payments,Survey Management,Park Retail Ltd,162178,"2,606.86", Survey Response Incentive Vouchers,Large,Programme Expenditure
UK Statistical Authority,Office for National Statistics,19-Nov-19,Exp - Purchase Of Goods/Services - IT Contractual Services,Tech Delivery Next Gen It And Infrastructure,E Synergy Solutions,162469,"30,690.00", Information Management Services ,SME,Programme Expenditure
UK Statistical Authority,Office for National Statistics,19-Nov-19,Exp - Purchase Of Goods/Services - ITContractual Services,IT Operations,E Synergy Solutions,162469,"138,195.00", Information Management Services ,SME,Programme Expenditure
UK Statistical Authority,Office for National Statistics,20-Nov-19,Travel And Subsistence,CWT Trainline,Corporate Travel Management ,162485,"73,069.23", Corporate Travel Management ,SME,Programme Expenditure
UK Statistical Authority,Office for National Statistics,20-Nov-19,"ICT Outsourcing, Maintenance And Support",IT Operations,Equiniti Limited,162486,"47,212.80", Information Management Services,Large,Programme Expenditure
UK Statistical Authority,Office for National Statistics,21-Nov-19,Exp - Purchase Of Goods And Services Consultants,CONSULTANCY MANAGEMENT,Deloitte,162916,"138,152.40", Information Management Services ,Large,Programme Expenditure
UK Statistical Authority,Office for National Statistics,21-Nov-19,Capital Major Works >25K,PROPERTY CHRISTCHURCH,Bruynzeel Storage Systems Ltd,162927,"37,506.00", Major Works Christchurch,Large,Programme Expenditure
UK Statistical Authority,Office for National Statistics,22-Nov-19,Exp - Purchase Of Goods/Services -Non- IT Contractual Services,DATA COLLECTION SERVICE,HH Associates Ltd,163280,"187,200.00", Census Information Management Services,SME,Programme Expenditure
UK Statistical Authority,Office for National Statistics,25-Nov-19,Exp - Purchase Of Goods/Services - Contractors,BUSINESS INDICATORS AND B O P,Mango Solutions,163281,"15,912.00", Information Management Services,SME,Programme Expenditure
UK Statistical Authority,Office for National Statistics,25-Nov-19,Exp - Purchase Of Goods/Services - Contractors,BUSINESS INDICATORS AND B O P,Mango Solutions,163281,"53,820.00", Information Management Services,SME,Programme Expenditure
UK Statistical Authority,Office for National Statistics,25-Nov-19,IT Management And Change,IT Operations,Clearvision-Cm,163283,"16,007.99"," Software Licenses, Maintenance and Support",SME,Programme Expenditure
UK Statistical Authority,Office for National Statistics,25-Nov-19,End User Software And Hardware,IT Operations,Clearvision-Cm,163283,"39,123.75", Cloud Services and Support,SME,Programme Expenditure
UK Statistical Authority,Office for National Statistics,25-Nov-19,Hosting,IT Operations,Clearvision-Cm,163283,"10,656.00", Cloud Services and Support,SME,Programme Expenditure
UK Statistical Authority,Office for National Statistics,25-Nov-19,End User Software And Hardware,Census & Soc Methodology Dd,Computacenter (UK) Limited,163290,416.21, Microsoft Azure Subscription,Large,Programme Expenditure
UK Statistical Authority,Office for National Statistics,25-Nov-19,End User Software And Hardware,IT Operations,Computacenter (UK) Limited,163290,"35,411.16", Microsoft Azure Subscription,Large,Programme Expenditure
UK Statistical Authority,Office for National Statistics,25-Nov-19,End User Software And Hardware,IT Operations,Comparex UK Ltd,163292,"40,384.52", Software Licenses,Large,Programme Expenditure
UK Statistical Authority,Office for National Statistics,25-Nov-19,Other Goods And Services,PROGRAMME DELIVERY,Cabinet Office,163293,"27,890.00", Recruitment Services,Large,Programme Expenditure
UK Statistical Authority,Office for National Statistics,25-Nov-19,Office Related Goods And Services,BUSINESS ARCHITECTURE,Gresham Office Furniture Limited,163294,"1,462.42", Major works Newport,SME,Programme Expenditure
UK Statistical Authority,Office for National Statistics,25-Nov-19,Furniture >5K Per Item,BUSINESS ARCHITECTURE,Gresham Office Furniture Limited,163294,"30,971.69", Major works Newport,SME,Programme Expenditure
UK Statistical Authority,Office for National Statistics,25-Nov-19,Major Works Over £25K,PROPERTY CHRISTCHURCH,Pickford’S Move Managment Ltd,163299,"30,062.69", Major Works Christchurch,Large,Programme Expenditure
UK Statistical Authority,Office for National Statistics,26-Nov-19,Telecoms,IT Operations,Vodafone Corporate Ltd,163586,"51,943.45", Telecommunication Services,Large,Programme Expenditure
UK Statistical Authority,Office for National Statistics,26-Nov-19,Exp - Short-Term Contract & Agency Staff - Full Cost,BEYOND 2021 RESEARCH AND DESIGN,Concept Information Technology Ltd T/A Concept Resourcing,163587,"4,897.00", Information Management Services,Large,Programme Expenditure
UK Statistical Authority,Office for National Statistics,26-Nov-19,Exp - Short-Term Contract & Agency Staff - Full Cost,BEYOND 2021 RESEARCH AND DESIGN,Concept Information Technology Ltd T/A Concept Resourcing,163587,"2,808.80", Information Management Services,Large,Programme Expenditure
UK Statistical Authority,Office for National Statistics,26-Nov-19,Exp - Purchase Of Goods/Services - Contractors,BEYOND 2021 RESEARCH AND DESIGN,Concept Information Technology Ltd T/A Concept Resourcing,163587,"10,588.32", Information Management Services,Large,Programme Expenditure
UK Statistical Authority,Office for National Statistics,26-Nov-19,Exp - Short-Term Contract & Agency Staff - Full Cost,BEYOND 2021 RESEARCH AND DESIGN,Concept Information Technology Ltd T/A Concept Resourcing,163587,"8,853.72", Information Management Services,Large,Programme Expenditure
UK Statistical Authority,Office for National Statistics,26-Nov-19,Exp - Short-Term Contract & Agency Staff - Full Cost,BEYOND 2021 RESEARCH AND DESIGN,Concept Information Technology Ltd T/A Concept Resourcing,163587,"2,969.03", Information Management Services,Large,Programme Expenditure
UK Statistical Authority,Office for National Statistics,26-Nov-19,Exp - Short-Term Contract & Agency Staff - Full Cost,BEYOND 2021 RESEARCH AND DESIGN,Concept Information Technology Ltd T/A Concept Resourcing,163587,"3,958.70", Information Management Services,Large,Programme Expenditure
UK Statistical Authority,Office for National Statistics,26-Nov-19,Exp - Short-Term Contract & Agency Staff - Full Cost,BEYOND 2021 RESEARCH AND DESIGN,Concept Information Technology Ltd T/A Concept Resourcing,163587,"11,728.84", Information Management Services,Large,Programme Expenditure
UK Statistical Authority,Office for National Statistics,26-Nov-19,Exp - Short-Term Contract & Agency Staff - Full Cost,BEYOND 2021 RESEARCH AND DESIGN,Concept Information Technology Ltd T/A Concept Resourcing,163587,"9,482.17", Information Management Services,Large,Programme Expenditure
UK Statistical Authority,Office for National Statistics,26-Nov-19,Exp - Purchase Of Goods/Services - Contractors,BEYOND 2021 RESEARCH AND DESIGN,Concept Information Technology Ltd T/A Concept Resourcing,163587,"7,048.11", Information Management Services,Large,Programme Expenditure
UK Statistical Authority,Office for National Statistics,26-Nov-19,Exp - Purchase Of Goods/Services - Contractors,BEYOND 2021 RESEARCH AND DESIGN,Concept Information Technology Ltd T/A Concept Resourcing,163587,"3,570.88", Information Management Services,Large,Programme Expenditure
UK Statistical Authority,Office for National Statistics,26-Nov-19,Exp - Purchase Of Goods/Services - Contractors,BEYOND 2021 RESEARCH AND DESIGN,Concept Information Technology Ltd T/A Concept Resourcing,163587,174, Information Management Services,Large,Programme Expenditure
UK Statistical Authority,Office for National Statistics,26-Nov-19,Exp - Purchase Of Goods/Services - Contractors,BEYOND 2021 RESEARCH AND DESIGN,Concept Information Technology Ltd T/A Concept Resourcing,163587,"3,248.52", Information Management Services,Large,Programme Expenditure
UK Statistical Authority,Office for National Statistics,26-Nov-19,Exp - Purchase Of Goods/Services - Contractors,BEYOND 2021 RESEARCH AND DESIGN,Concept Information Technology Ltd T/A Concept Resourcing,163587,"8,945.05", Information Management Services,Large,Programme Expenditure
UK Statistical Authority,Office for National Statistics,26-Nov-19,Exp - Short-Term Contract & Agency Staff - Full Cost,BEYOND 2021 RESEARCH AND DESIGN,Concept Information Technology Ltd T/A Concept Resourcing,163587,989.68, Information Management Services,Large,Programme Expenditure
UK Statistical Authority,Office for National Statistics,26-Nov-19,Exp - Short-Term Contract & Agency Staff - Full Cost,BEYOND 2021 RESEARCH AND DESIGN,Concept Information Technology Ltd T/A Concept Resourcing,163587,"10,881.63", Information Management Services,Large,Programme Expenditure
UK Statistical Authority,Office for National Statistics,26-Nov-19,Exp - Short-Term Contract & Agency Staff - Full Cost,BEYOND 2021 RESEARCH AND DESIGN,Concept Information Technology Ltd T/A Concept Resourcing,163587,989.68, Information Management Services,Large,Programme Expenditure
UK Statistical Authority,Office for National Statistics,26-Nov-19,Exp - Purchase Of Goods/Services - Contractors,BEYOND 2021 RESEARCH AND DESIGN,Concept Information Technology Ltd T/A Concept Resourcing,163587,"2,969.03", Information Management Services,Large,Programme Expenditure
UK Statistical Authority,Office for National Statistics,26-Nov-19,Exp - Purchase Of Goods/Services - Contractors,BEYOND 2021 RESEARCH AND DESIGN,Concept Information Technology Ltd T/A Concept Resourcing,163587,"3,838.34", Information Management Services,Large,Programme Expenditure
UK Statistical Authority,Office for National Statistics,26-Nov-19,Exp - Short-Term Contract & Agency Staff - Full Cost,BEYOND 2021 RESEARCH AND DESIGN,Concept Information Technology Ltd T/A Concept Resourcing,163587,"3,829.51", Information Management Services,Large,Programme Expenditure
UK Statistical Authority,Office for National Statistics,26-Nov-19,Exp - Short-Term Contract & Agency Staff - Full Cost,BEYOND 2021 RESEARCH AND DESIGN,Concept Information Technology Ltd T/A Concept Resourcing,163587,"2,854.37", Information Management Services,Large,Programme Expenditure
UK Statistical Authority,Office for National Statistics,26-Nov-19,Exp - Purchase Of Goods/Services - IT Contractual Services,BEYOND 2021 RESEARCH AND DESIGN,Concept Information Technology Ltd T/A Concept Resourcing,163587,"11,448.00", Information Management Services,Large,Programme Expenditure
UK Statistical Authority,Office for National Statistics,26-Nov-19,Exp - Purchase Of Goods/Services - Contractors,BEYOND 2021 RESEARCH AND DESIGN,Concept Information Technology Ltd T/A Concept Resourcing,163587,"1,569.60", Information Management Services,Large,Programme Expenditure
UK Statistical Authority,Office for National Statistics,26-Nov-19,Exp - Purchase Of Goods/Services - IT Contractual Services,BEYOND 2021 RESEARCH AND DESIGN,Concept Information Technology Ltd T/A Concept Resourcing,163587,636, Information Management Services,Large,Programme Expenditure
UK Statistical Authority,Office for National Statistics,26-Nov-19,Exp - Short-Term Contract & Agency Staff - Full Cost,BEYOND 2021 RESEARCH AND DESIGN,Concept Information Technology Ltd T/A Concept Resourcing,163587,"2,246.83", Information Management Services,Large,Programme Expenditure
UK Statistical Authority,Office for National Statistics,26-Nov-19,Exp - Short-Term Contract & Agency Staff - Full Cost,Survey Development,Concept Information Technology Ltd T/A Concept Resourcing,163587,"1,742.98", Information Management Services,Large,Programme Expenditure
UK Statistical Authority,Office for National Statistics,26-Nov-19,Exp - Short-Term Contract & Agency Staff - Full Cost,Interviewer Management TU,Concept Information Technology Ltd T/A Concept Resourcing,163587,"1,132.84", Information Management Services,Large,Programme Expenditure
UK Statistical Authority,Office for National Statistics,26-Nov-19,Other Goods And Services,Interviewer Management TU,Concept Information Technology Ltd T/A Concept Resourcing,163587,"2,621.34", Information Management Services,Large,Programme Expenditure
UK Statistical Authority,Office for National Statistics,26-Nov-19,Exp - Short-Term Contract & Agency Staff - Full Cost,Business Outputs And Developments,Concept Information Technology Ltd T/A Concept Resourcing,163587,"3,824.96", Information Management Services,Large,Programme Expenditure
UK Statistical Authority,Office for National Statistics,26-Nov-19,IT Management And Change,Digital Delivery,XMA Limited,163589,"17,443.47", Census Management Information Services,Large,Programme Expenditure
UK Statistical Authority,Office for National Statistics,26-Nov-19,IT Management And Change,Digital Delivery,XMA Limited,163589,"31,147.19", Census Management Information Services,Large,Programme Expenditure
UK Statistical Authority,Office for National Statistics,26-Nov-19,Exp - Purchase Of Goods/Services - Other ICT Costs Software,Digital Delivery,XMA Limited,163589,"35,280.00", Census Management Information Services,Large,Programme Expenditure
UK Statistical Authority,Office for National Statistics,26-Nov-19,Exp - Purchase Of Goods/Services - Contractors,PROGRAMME DELIVERY,Certes Computing Ltd,163594,640.5, Information Management Services,SME,Programme Expenditure
UK Statistical Authority,Office for National Statistics,26-Nov-19,Exp - Purchase Of Goods/Services - Contractors,PROGRAMME DELIVERY,Certes Computing Ltd,163594,"8,967.00", Information Management Services,SME,Programme Expenditure
UK Statistical Authority,Office for National Statistics,26-Nov-19,Exp - Purchase Of Goods/Services - Contractors,Tech Delivery Legacy Sp,Certes Computing Ltd,163594,"6,405.00", Information Management Services,SME,Programme Expenditure
UK Statistical Authority,Office for National Statistics,26-Nov-19,Exp - Purchase Of Goods/Services - Contractors,Digital Delivery,Certes Computing Ltd,163594,"1,931.94", Information Management Services,SME,Programme Expenditure
UK Statistical Authority,Office for National Statistics,26-Nov-19,Exp - Purchase Of Goods/Services - Contractors,Digital Delivery,Certes Computing Ltd,163594,"16,652.40", Information Management Services,SME,Programme Expenditure
UK Statistical Authority,Office for National Statistics,26-Nov-19,Exp - Purchase Of Goods/Services - Contractors,Digital Delivery,Certes Computing Ltd,163594,"13,386.11", Information Management Services,SME,Programme Expenditure
UK Statistical Authority,Office for National Statistics,26-Nov-19,Exp - Purchase Of Goods/Services - Contractors,Digital Delivery,Certes Computing Ltd,163594,"3,599.64", Information Management Services,SME,Programme Expenditure
UK Statistical Authority,Office for National Statistics,26-Nov-19,Exp - Purchase Of Goods/Services -Non- IT Contractual Services,CENSUS CCS DATA COLLECTION,Royal Mail Group Ltd,163596,"146,857.20", Census Outgoing Postage,Large,Programme Expenditure
UK Statistical Authority,Office for National Statistics,26-Nov-19,Exp - Purchase Of Goods/Services - IT Contractual Services,Tech Delivery SRS,"Nomensa Ltd,",163602,"48,420.00", Information Management Services,Large,Programme Expenditure
UK Statistical Authority,Office for National Statistics,27-Nov-19,Telecoms,IT Operations,Vodafone Corporate Ltd,163605,"43,589.97", Telecommunication Services,Large,Programme Expenditure
UK Statistical Authority,Office for National Statistics,27-Nov-19,Specialist User Software And Hardware,Tech Delivery Legacy SP,IBM United Kingdom Ltd,163606,"287,769.83", Software Licenses,Large,Programme Expenditure
UK Statistical Authority,Office for National Statistics,27-Nov-19,Travel And Subsistence,CWT Trainline,Corporate Travel Management ,163610,"80,765.80", Corporate Travel Management ,SME,Programme Expenditure
UK Statistical Authority,Office for National Statistics,27-Nov-19,Telecoms,IT Operations,Centurylink Communications UK Ltd,163615,"42,162.31", Information Management Services ,Large,Programme Expenditure
UK Statistical Authority,Office for National Statistics,27-Nov-19,Exp - Purchase Of Goods/Services -Non- IT Contractual Services,DATA COLLECTION SERVICE,Serco Ltd,163619,"185,924.06", Information Management Services,Large,Programme Expenditure
UK Statistical Authority,Office for National Statistics,27-Nov-19,"ICT Outsourcing, Maintenance And Support",IT Operations,CTS (Cloud Technology Solutions Ltd),163620,"55,313.22", Google Cloud Services,Large,Programme Expenditure
UK Statistical Authority,Office for National Statistics,06-Nov-19,Exp - Purchase Of Goods And Services Consultants,Digital Delivery,XMA Limited,30001652,"25,665.60", Census Management Information Services,Large,Programme Expenditure
UK Statistical Authority,Office for National Statistics,06-Nov-19,IT (Owned) At Cost - Additions,IT Operations,Centerprise International Ltd,30001653,"190,784.14", Computer Hardware ,Large,Programme Expenditure
UK Statistical Authority,Office for National Statistics,06-Nov-19,Exp - Purchase Of Goods/Services - IT Contractual Services,DST Reapportioning,E Synergy Solutions,30001654,720, Information Management Services ,SME,Programme Expenditure
UK Statistical Authority,Office for National Statistics,06-Nov-19,Exp - Purchase Of Goods/Services - IT Contractual Services,Tech Delivery Next Gen It And Infrastructure,E Synergy Solutions,30001654,"30,300.00", Information Management Services ,SME,Programme Expenditure
UK Statistical Authority,Office for National Statistics,06-Nov-19,Exp - Purchase Of Goods/Services - IT Contractual Services,IT Operations,E Synergy Solutions,30001654,"152,871.00", Information Management Services ,SME,Programme Expenditure
UK Statistical Authority,Office for National Statistics,06-Nov-19,Surveys,Prices Division,Kantar UK Ltd,30001655,"193,289.20", Statistical Services,Large,Programme Expenditure
UK Statistical Authority,Office for National Statistics,07-Nov-19,FM Contract Payments,Mitie Payments,Vinci Construction UK Limited,30001657,"332,976.06", Facility Management Services,Large,Programme Expenditure
UK Statistical Authority,Office for National Statistics,11-Nov-19,Stationery,Lodgecard,Royal Bank Of Scotland,30001670,"11,394.29", Multiple Procurement Card Stationery Purchases  ,Large,Programme Expenditure
UK Statistical Authority,Office for National Statistics,11-Nov-19,Other Goods And Services,GPC,Royal Bank Of Scotland,30001670,"53,847.53", Multiple Procurement Card Purchases  ,Large,Programme Expenditure
UK Statistical Authority,Office for National Statistics,11-Nov-19,Travel And Subsistence,Car Hire,Royal Bank Of Scotland,30001670,"59,996.40", Multiple Procurement Car Hire Purchases  ,Large,Programme Expenditure
UK Statistical Authority,Office for National Statistics,18-Nov-19,Payroll Loan Recovery,NONE,Hm Revenue & Customs,30001680,"62,949.21", Census PAYE Payment,Large,Programme Expenditure
UK Statistical Authority,Office for National Statistics,20-Nov-19,Electricity,PROPERTY NEWPORT,ESF Energy,30001683,"33,439.38", Electricity Charges Newport,Large,Programme Expenditure
UK Statistical Authority,Office for National Statistics,20-Nov-19,Electricity,PROPERTY TITCHFIELD,ESF Energy,30001683,"28,879.33", Electricity Charges Titchfield,Large,Programme Expenditure
UK Statistical Authority,Office for National Statistics,29-Nov-19,Exp - Purchase Of Goods/Services -Non- IT Contractual Services,CENSUS CCS DATA COLLECTION,Granby Marketing Services Ltd,30001695,"35,210.78", Census Information Management Services,Large,Programme Expenditure
UK Statistical Authority,Office for National Statistics,29-Nov-19,IT (Owned) At Cost - Additions,SECURITY OPERATIONS,SCC,30001698,"597,830.21", Software Lincence and Support,Large,Programme Expenditure
UK Statistical Authority,Office for National Statistics,29-Nov-19,Software Licences At Cost - Additions,SECURITY OPERATIONS,SCC,30001698,"675,810.00", Software Lincence and Support,Large,Programme Expenditure
UK Statistical Authority,Office for National Statistics,15-Nov-19,IT Management And Change,IT OPERATIONS,Centraal Bureau Voor De Statistiek,90001007,"188,766.87", Software Licenses,Large,Programme Expenditure
